fUSD/lending_fUSD_20250814
["ID","MTS","AMOUNT","RATE_DAILY","PERIOD"]
[379215502,1755190261686,-2234.17,0.00027397,2]
[379215503,1755190261696,-1176.04,0.00027397,2]
[379215504,1755190261705,-2296.47,0.00027397,2]
[379215505,1755190261715,-786.6,0.00027397,2]
[379215506,1755190261727,-473.91,0.00027397,2]
[379215507,1755190261736,-491.78285041,0.00027397,2]
[379215508,1755190261746,-500.0,0.00027397,2]
[379215509,1755190261756,-478.84,0.00027397,2]
[379215510,1755190261766,-500.0,0.00027397,2]
[379215511,1755190261775,-500.0,0.00027397,2]
[379215512,1755190261784,-500.0,0.00027397,2]
[379215513,1755190261793,-500.0,0.00027397,2]
[379215514,1755190261803,-988.33,0.00027397,2]
[379215515,1755190261812,-500.0,0.00027397,2]
[379215516,1755190261822,-500.0,0.00027397,2]
[379215517,1755190261831,-500.0,0.00027397,2]
[379215518,1755190261841,-500.0,0.00027397,2]
[379215519,1755190261850,-500.0,0.00027397,2]
[379215520,1755190261860,-383.81287353,0.00027397,2]
[379215521,1755190261870,-400.0,0.00027397,2]
[379215522,1755190261880,-500.0,0.00027397,2]
[379215523,1755190261889,-500.0,0.00027397,2]
[379215524,1755190261899,-500.0,0.00027397,2]
[379215525,1755190261908,-504.7614452,0.00027397,2]
[379215526,1755190261918,-400.0,0.00027397,2]
[379215527,1755190261927,-400.0,0.00027397,2]
[379215528,1755190261937,-734.79,0.00027397,2]
[379215529,1755190261947,-400.0,0.00027397,2]
[379215530,1755190261956,-400.0,0.00027397,2]
[379215531,1755190261965,-400.0,0.00027397,2]
[379215532,1755190261978,-417.45,0.00027397,2]
[379215533,1755190261987,-400.0,0.00027397,2]
[379215534,1755190261997,-1856.63,0.00027397,2]
[379215535,1755190262006,-400.0,0.00027397,2]
[379215536,1755190262015,-5197.17,0.00027397,2]
[379215537,1755190262025,-400.0,0.00027397,2]
[379215538,1755190262034,-400.0,0.00027397,2]
[379215539,1755190262044,-400.0,0.00027397,2]
[379215540,1755190262053,-467.19,0.00027397,2]
[379215541,1755190262063,-2716.87,0.00027397,2]
[379215542,1755190262072,-2023.98,0.00027397,2]
[379215543,1755190262082,-2965.1,0.00027397,2]
[379215544,1755190262091,-400.0,0.00027397,2]
[379215545,1755190262101,-4530.51,0.00027397,2]
[379215546,1755190262110,-4221.59,0.00027397,2]
[379215547,1755190262120,-1568.69,0.00027397,2]
[379215548,1755190262129,-817.98,0.00027397,2]
[379215549,1755190262139,-738.45,0.00027397,2]
[379215550,1755190262148,-403.82841784,0.00027397,2]
[379215551,1755190262158,-400.0,0.00027397,2]
[379215552,1755190262167,-3927.15,0.00027397,2]
[379215553,1755190262177,-400.0,0.00027397,2]
[379215554,1755190262186,-734.76,0.00027397,2]
[379215555,1755190262195,-400.0,0.00027397,2]
[379215556,1755190262205,-500.0,0.00027397,2]
[379215557,1755190262215,-500.0,0.00027397,2]
[379215558,1755190262228,-1563.68,0.00027397,2]
[379215559,1755190262237,-500.0,0.00027397,2]
[379215560,1755190262246,-154.51131682,0.00027397,2]
[379215561,1755190262256,-695.09,0.00027397,2]
[379215562,1755190262265,-1284.34,0.00027397,2]
[379215563,1755190262275,-757.27,0.00027397,2]
[379215564,1755190262284,-1601.94,0.00027397,2]
[379215565,1755190262293,-400.0,0.00027397,2]
[379215566,1755190262303,-400.0,0.00027397,2]
[379215567,1755190262312,-584.33,0.00027397,2]
[379215568,1755190262321,-2448.22,0.00027397,2]
[379215569,1755190262331,-3818.32,0.00027397,2]
[379215570,1755190262340,-400.0,0.00027397,2]
[379215571,1755190262350,-400.0,0.00027397,2]
[379215572,1755190262359,-400.0,0.00027397,2]
[379215573,1755190262369,-2978.32,0.00027397,2]
[379215574,1755190262378,-598.29,0.00027397,2]
[379215575,1755190262388,-400.0,0.00027397,2]
[379215576,1755190262398,-1229.48,0.00027397,2]
[379215577,1755190262407,-2400.39,0.00027397,2]
[379215578,1755190262417,-2637.4,0.00027397,2]
[379215579,1755190262427,-1823.66,0.00027397,2]
[379215580,1755190262436,-3265.67,0.00027397,2]
[379215581,1755190262445,-400.0,0.00027397,2]
[379215582,1755190262455,-676.94,0.00027397,2]
[379215583,1755190262464,-400.0,0.00027397,2]
[379215584,1755190262476,-400.0,0.00027397,2]
[379215585,1755190262486,-400.0,0.00027397,2]
[379215586,1755190262495,-400.0,0.00027397,2]
[379215587,1755190262505,-400.0,0.00027397,2]
[379215588,1755190262515,-1928.54,0.00027397,2]
[379215589,1755190262530,-400.0,0.00027397,2]
[379215590,1755190262539,-961.44,0.00027397,2]
[379215591,1755190262549,-529.23,0.00027397,2]
[379215592,1755190262558,-1595.55,0.00027397,2]
[379215593,1755190262803,-2002.47,0.00027397,2]
[379215594,1755190262848,-2884.92,0.00027397,2]
[379215595,1755190262858,-406.47,0.00027397,2]
[379215596,1755190262868,-400.0,0.00027397,2]
[379215597,1755190262878,-400.0,0.00027397,2]
[379215598,1755190262887,-821.47,0.00027397,2]
[379215599,1755190262897,-400.0,0.00027397,2]
[379215600,1755190262906,-1023.33,0.00027397,2]
[379215601,1755190262916,-902.76,0.00027397,2]
[379215602,1755190262926,-3198.04,0.00027397,2]
[379215603,1755190262935,-400.0,0.00027397,2]
[379215604,1755190262945,-400.0,0.00027397,2]
[379215605,1755190262954,-5751.1,0.00027397,2]
[379215606,1755190262964,-400.0,0.00027397,2]
[379215607,1755190262977,-400.0,0.00027397,2]
[379215608,1755190262987,-400.0,0.00027397,2]
[379215609,1755190262997,-400.0,0.00027397,2]
[379215610,1755190263007,-586.72,0.00027397,2]
[379215611,1755190263018,-400.0,0.00027397,2]
[379215612,1755190263028,-400.0,0.00027397,2]
[379215613,1755190263038,-400.0,0.00027397,2]
[379215614,1755190263048,-3394.7,0.00027397,2]
[379215615,1755190263059,-400.0,0.00027397,2]
[379215616,1755190263069,-521.68419524,0.00027397,2]
[379215617,1755190263079,-1223.83,0.00027397,2]
[379215618,1755190263089,-3361.38,0.00027397,2]
[379215619,1755190263099,-545.47,0.00027397,2]
[379215620,1755190263109,-3678.5,0.00027397,2]
[379215621,1755190263119,-6545.5,0.00027397,2]
[379215622,1755190263129,-4399.19,0.00027397,2]
[379215623,1755190263140,-455.42,0.00027397,2]
[379215624,1755190263150,-400.0,0.00027397,2]
[379215625,1755190263161,-414.86,0.00027397,2]
[379215626,1755190263171,-400.0,0.00027397,2]
[379215627,1755190263181,-949.85,0.00027397,2]
[379215628,1755190263192,-400.0,0.00027397,2]
[379215629,1755190263202,-400.0,0.00027397,2]
[379215630,1755190263212,-2786.04,0.00027397,2]
[379215631,1755190263222,-400.0,0.00027397,2]
[379215632,1755190263235,-400.0,0.00027397,2]
[379215633,1755190263246,-2414.49,0.00027397,2]
[379215634,1755190263256,-2545.39,0.00027397,2]
[379215635,1755190263266,-491.04,0.00027397,2]
[379215636,1755190263276,-400.0,0.00027397,2]
[379215637,1755190263287,-400.0,0.00027397,2]
[379215638,1755190263296,-2897.19,0.00027397,2]
[379215639,1755190263306,-400.0,0.00027397,2]
[379215640,1755190263316,-400.0,0.00027397,2]
[379215641,1755190263326,-400.0,0.00027397,2]
[379215642,1755190263336,-400.0,0.00027397,2]
[379215643,1755190263345,-3343.6,0.00027397,2]
[379215644,1755190263355,-1781.73,0.00027397,2]
[379215645,1755190263365,-509.29,0.00027397,2]
[379215646,1755190263376,-583.1,0.00027397,2]
[379215647,1755190263386,-400.0,0.00027397,2]
[379215648,1755190263396,-602.17,0.00027397,2]
[379215649,1755190263406,-448.71,0.00027397,2]
[379215650,1755190263416,-400.0,0.00027397,2]
[379215651,1755190263427,-400.0,0.00027397,2]
[379215652,1755190263437,-5494.27,0.00027397,2]
[379215653,1755190263447,-502.22,0.00027397,2]
[379215654,1755190263457,-2988.94,0.00027397,2]
[379215655,1755190263467,-400.0,0.00027397,2]
[379215656,1755190263478,-500.0,0.00027397,2]
[379215657,1755190263488,-400.0,0.00027397,2]
[379215658,1755190263497,-400.0,0.00027397,2]
[379215659,1755190263507,-716.93,0.00027397,2]
[379215660,1755190263518,-400.0,0.00027397,2]
[379215661,1755190263531,-400.0,0.00027397,2]
[379215662,1755190263541,-541.38,0.00027397,2]
[379215663,1755190263551,-786.74,0.00027397,2]
[379215664,1755190263562,-2994.96,0.00027397,2]
[379215665,1755190263572,-715.64,0.00027397,2]
[379215666,1755190263582,-3887.55,0.00027397,2]
[379215667,1755190263592,-813.65,0.00027397,2]
[379215668,1755190263602,-925.51,0.00027397,2]
[379215669,1755190263613,-1873.48,0.00027397,2]
[379215670,1755190263623,-400.0,0.00027397,2]
[379215671,1755190263632,-400.0,0.00027397,2]
[379215672,1755190263642,-1064.21,0.00027397,2]
[379215673,1755190263652,-400.0,0.00027397,2]
[379215674,1755190263662,-400.0,0.00027397,2]
[379215675,1755190263671,-400.0,0.00027397,2]
[379215676,1755190263681,-1624.27,0.00027397,2]
[379215677,1755190263691,-468.88,0.00027397,2]
[379215678,1755190263702,-3211.42,0.00027397,2]
[379215679,1755190263712,-880.25,0.00027397,2]
[379215680,1755190263723,-880.25,0.00027397,2]
[379215681,1755190263737,-880.25,0.00027397,2]
[379215682,1755190263747,-400.0,0.00027397,2]
[379215683,1755190263757,-880.25,0.00027397,2]
[379215684,1755190263767,-880.25,0.00027397,2]
[379215685,1755190263778,-1376.47,0.00027397,2]
[379215686,1755190263788,-880.25,0.00027397,2]
[379215687,1755190263798,-1376.47,0.00027397,2]
[379215688,1755190263809,-880.25,0.00027397,2]
[379215689,1755190263819,-1376.47,0.00027397,2]
[379215690,1755190263829,-880.25,0.00027397,2]
[379215691,1755190263840,-1376.47,0.00027397,2]
[379215692,1755190263850,-880.25,0.00027397,2]
[379215693,1755190263859,-1376.47,0.00027397,2]
[379215694,1755190263868,-880.25,0.00027397,2]
[379215695,1755190263877,-1376.47,0.00027397,2]
[379215696,1755190263886,-400.0,0.00027397,2]
[379215697,1755190263895,-1376.47,0.00027397,2]
[379215698,1755190263905,-1376.47,0.00027397,2]
[379215699,1755190263915,-1376.47,0.00027397,2]
[379215700,1755190263925,-1376.47,0.00027397,2]
[379215701,1755190263934,-416.3,0.00027397,2]
[379215702,1755190263944,-514.57,0.00027397,2]
[379215703,1755190263953,-1376.47,0.00027397,2]
[379215704,1755190263962,-1511.79,0.00027397,2]
[379215705,1755190263971,-1376.47,0.00027397,2]
[379215706,1755190263984,-1376.47,0.00027397,2]
[379215707,1755190263993,-1376.47,0.00027397,2]
[379215708,1755190264001,-1376.47,0.00027397,2]
[379215709,1755190264010,-400.0,0.00027397,2]
[379215710,1755190264019,-2950.42,0.00027397,2]
[379215711,1755190264027,-1376.47,0.00027397,2]
[379215712,1755190264036,-400.0,0.00027397,2]
[379215713,1755190264045,-1376.47,0.00027397,2]
[379215714,1755190264053,-1376.47,0.00027397,2]
[379215715,1755190264063,-551.28980038,0.00027397,2]
[379215716,1755190264072,-1376.47,0.00027397,2]
[379215717,1755190264081,-1376.47,0.00027397,2]
[379215718,1755190264090,-3872.59,0.00027397,2]
[379215719,1755190264100,-400.0,0.00027397,2]
[379215720,1755190264109,-2648.45,0.00027397,2]
[379215721,1755190264118,-472.29,0.00027397,2]
[379215722,1755190264128,-400.0,0.00027397,2]
[379215723,1755190264137,-1115.17,0.00027397,2]
[379215724,1755190264146,-400.0,0.00027397,2]
[379215725,1755190264155,-400.0,0.00027397,2]
[379215726,1755190264164,-1115.17,0.00027397,2]
[379215727,1755190264173,-1115.17,0.00027397,2]
[379215728,1755190264183,-1376.47,0.00027397,2]
[379215729,1755190264192,-1115.17,0.00027397,2]
[379215730,1755190264202,-1376.47,0.00027397,2]
[379215731,1755190264210,-1115.17,0.00027397,2]
[379215732,1755190264219,-1376.47,0.00027397,2]
[379215733,1755190264230,-1115.17,0.00027397,2]
[379215734,1755190264239,-404.1,0.00027397,2]
[379215735,1755190264247,-1115.17,0.00027397,2]
[379215736,1755190264257,-1376.69643659,0.00027397,2]
[379215737,1755190264265,-1115.17,0.00027397,2]
[379215738,1755190264275,-1115.17,0.00027397,2]
[379215739,1755190264283,-1115.17,0.00027397,2]
[379215740,1755190264293,-1115.17,0.00027397,2]
[379215741,1755190264301,-1115.17,0.00027397,2]
[379215742,1755190264310,-1115.17,0.00027397,2]
[379215743,1755190264320,-1115.17,0.00027397,2]
[379215744,1755190264329,-400.0,0.00027397,2]
[379215745,1755190264337,-2644.0,0.00027397,2]
[379215746,1755190264347,-1115.17,0.00027397,2]
[379215747,1755190264356,-1115.17,0.00027397,2]
[379215748,1755190264364,-1335.05,0.00027397,2]
[379215749,1755190264373,-1115.17,0.00027397,2]
[379215750,1755190264382,-400.0,0.00027397,2]
[379215751,1755190264391,-1358.04,0.00027397,2]
[379215752,1755190264399,-842.31,0.00027397,2]
[379215753,1755190264408,-719.96,0.00027397,2]
[379215754,1755190264417,-428.88,0.00027397,2]
[379215755,1755190264427,-400.0,0.00027397,2]
[379215756,1755190264435,-847.81,0.00027397,2]
[379215757,1755190264443,-400.0,0.00027397,2]
[379215758,1755190264452,-1123.59,0.00027397,2]
[379215759,1755190264461,-3436.17,0.00027397,2]
[379215760,1755190264470,-760.04,0.00027397,2]
[379215761,1755190264481,-4564.59,0.00027397,2]
[379215762,1755190264491,-3838.74,0.00027397,2]
[379215763,1755190264500,-3475.63,0.00027397,2]
[379215764,1755190264510,-2568.71,0.00027397,2]
[379215765,1755190264520,-3838.74,0.00027397,2]
[379215766,1755190264531,-3838.74,0.00027397,2]
[379215767,1755190264541,-3838.74,0.00027397,2]
[379215768,1755190264550,-3838.74,0.00027397,2]
[379215769,1755190264562,-3838.74,0.00027397,2]
[379215770,1755190264572,-3838.74,0.00027397,2]
[379215771,1755190264581,-3838.74,0.00027397,2]
[379215772,1755190264591,-400.0,0.00027397,2]
[379215773,1755190264602,-400.0,0.00027397,2]
[379215774,1755190264612,-3838.74,0.00027397,2]
[379215775,1755190264621,-2403.81,0.00027397,2]
[379215776,1755190264631,-3110.67,0.00027397,2]
[379215777,1755190264641,-400.0,0.00027397,2]
[379215778,1755190264651,-722.23,0.00027397,2]
[379215779,1755190264660,-400.0,0.00027397,2]
[379215780,1755190264669,-400.0,0.00027397,2]
[379215781,1755190264678,-400.0,0.00027397,2]
[379215782,1755190264689,-404.06568396,0.00027397,2]
[379215783,1755190264698,-400.0,0.00027397,2]
[379215784,1755190264708,-437.09,0.00027397,2]
[379215785,1755190264717,-587.96,0.00027397,2]
[379215786,1755190264729,-471.91,0.00027397,2]
[379215787,1755190264738,-500.0,0.00027397,2]
[379215788,1755190264748,-500.0,0.00027397,2]
[379215789,1755190264757,-400.0,0.00027397,2]
[379215790,1755190264767,-241.45,0.00027397,2]
[379215791,1755190264777,-1603.78,0.00027397,2]
[379215792,1755190264787,-2670.15,0.00027397,2]
[379215793,1755190264796,-573.61,0.00027397,2]
[379215794,1755190264806,-3838.74,0.00027397,2]
[379215795,1755190264816,-400.0,0.00027397,2]
[379215796,1755190264825,-3838.74,0.00027397,2]
[379215797,1755190264835,-435.88332264,0.00027397,2]
[379215798,1755190264845,-400.0,0.00027397,2]
[379215799,1755190264854,-3838.74,0.00027397,2]
[379215800,1755190264864,-414.19,0.00027397,2]
[379215801,1755190264873,-3584.47,0.00027397,2]
[379215802,1755190264884,-3838.74,0.00027397,2]
[379215803,1755190264894,-400.0,0.00027397,2]
[379215804,1755190264903,-3838.74,0.00027397,2]
[379215805,1755190264913,-3838.74,0.00027397,2]
[379215806,1755190264923,-2008.31,0.00027397,2]
[379215807,1755190264933,-1051.21,0.00027397,2]
[379215808,1755190264943,-3017.69,0.00027397,2]
[379215809,1755190264952,-400.0,0.00027397,2]
[379215810,1755190264962,-400.0,0.00027397,2]
[379215811,1755190264971,-417.7,0.00027397,2]
[379215812,1755190264982,-400.0,0.00027397,2]
[379215813,1755190264992,-1809.35,0.00027397,2]
[379215814,1755190265002,-450.46,0.00027397,2]
[379215815,1755190265012,-1634.43,0.00027397,2]
[379215816,1755190265021,-963.1,0.00027397,2]
[379215817,1755190265031,-547.38066848,0.00027397,2]
[379215818,1755190265040,-2966.92,0.00027397,2]
[379215819,1755190265050,-5994.46,0.00027397,2]
[379215820,1755190265059,-400.0,0.00027397,2]
[379215821,1755190265069,-709.35,0.00027397,2]
[379215822,1755190265079,-1215.15,0.00027397,2]
[379215823,1755190265088,-3838.74,0.00027397,2]
[379215824,1755190265098,-3838.74,0.00027397,2]
[379215825,1755190265108,-3838.74,0.00027397,2]
[379215826,1755190265118,-3838.74,0.00027397,2]
[379215827,1755190265128,-1126.24,0.00027397,2]
[379215828,1755190265137,-402.71045338,0.00027397,2]
[379215829,1755190265147,-400.0,0.00027397,2]
[379215830,1755190265156,-2452.09,0.00027397,2]
[379215831,1755190265166,-507.92,0.00027397,2]
[379215832,1755190265176,-1415.92,0.00027397,2]
[379215833,1755190265186,-2774.56,0.00027397,2]
[379215834,1755190265195,-400.0,0.00027397,2]
[379215835,1755190265204,-474.43,0.00027397,2]
[379215836,1755190265214,-400.0,0.00027397,2]
[379215837,1755190265226,-4405.71,0.00027397,2]
[379215838,1755190265235,-5847.55,0.00027397,2]
[379215839,1755190265245,-400.0,0.00027397,2]
[379215840,1755190265255,-400.0,0.00027397,2]
[379215841,1755190265265,-828.38,0.00027397,2]
[379215842,1755190265275,-400.0,0.00027397,2]
[379215843,1755190265394,-439.81,0.00027397,2]
[379215844,1755190265404,-6763.69,0.00027397,2]
[379215845,1755190265414,-767.05,0.00027397,2]
[379215846,1755190265423,-1829.86,0.00027397,2]
[379215847,1755190265432,-400.0,0.00027397,2]
[379215848,1755190265441,-799.62,0.00027397,2]
[379215849,1755190265451,-4039.59,0.00027397,2]
[379215850,1755190265460,-400.0,0.00027397,2]
[379215851,1755190265469,-400.0,0.00027397,2]
[379215852,1755190265481,-2517.7,0.00027397,2]
[379215853,1755190265490,-400.0,0.00027397,2]
[379215854,1755190265499,-2292.24,0.00027397,2]
[379215855,1755190265508,-1017.29,0.00027397,2]
[379215856,1755190265518,-2561.34,0.00027397,2]
[379215857,1755190265530,-400.0,0.00027397,2]
[379215858,1755190265541,-2042.12,0.00027397,2]
[379215859,1755190265550,-400.0,0.00027397,2]
[379215860,1755190265559,-400.0,0.00027397,2]
[379215861,1755190265569,-6333.38,0.00027397,2]
[379215862,1755190265579,-2204.37,0.00027397,2]
[379215863,1755190265588,-400.0,0.00027397,2]
[379215864,1755190265598,-400.0,0.00027397,2]
[379215865,1755190265609,-400.0,0.00027397,2]
[379215866,1755190265618,-400.0,0.00027397,2]
[379215867,1755190265627,-5128.5,0.00027397,2]
[379215868,1755190265637,-2424.11,0.00027397,2]
[379215869,1755190265646,-1721.97,0.00027397,2]
[379215870,1755190265655,-400.0,0.00027397,2]
[379215871,1755190265665,-400.0,0.00027397,2]
[379215872,1755190265674,-831.22,0.00027397,2]
[379215873,1755190265683,-3128.53,0.00027397,2]
[379215874,1755190265693,-400.0,0.00027397,2]
[379215875,1755190265702,-980.59,0.00027397,2]
[379215876,1755190265711,-400.0,0.00027397,2]
[379215877,1755190265721,-6328.61,0.00027397,2]
[379215878,1755190265734,-1503.89,0.00027397,2]
[379215879,1755190265743,-858.11,0.00027397,2]
[379215880,1755190265752,-400.0,0.00027397,2]
[379215881,1755190265761,-3094.79,0.00027397,2]
[379215882,1755190265770,-400.0,0.00027397,2]
[379215883,1755190265780,-781.61,0.00027397,2]
[379215884,1755190265789,-1046.26,0.00027397,2]
[379215885,1755190265799,-400.0,0.00027397,2]
[379215886,1755190265808,-1015.47,0.00027397,2]
[379215887,1755190265817,-5449.72,0.00027397,2]
[379215888,1755190265826,-400.0,0.00027397,2]
[379215889,1755190265835,-6299.88,0.00027397,2]
[379215890,1755190265844,-3549.7,0.00027397,2]
[379215891,1755190265853,-400.0,0.00027397,2]
[379215892,1755190265862,-400.0,0.00027397,2]
[379215893,1755190265871,-4460.0,0.00027397,2]
[379215894,1755190265880,-3338.95,0.00027397,2]
[379215895,1755190265889,-790.56,0.00027397,2]
[379215896,1755190265898,-400.0,0.00027397,2]
[379215897,1755190265907,-400.0,0.00027397,2]
[379215898,1755190265916,-1403.25,0.00027397,2]
[379215899,1755190265925,-400.0,0.00027397,2]
[379215900,1755190265934,-500.0,0.00027397,2]
[379215901,1755190265944,-400.0,0.00027397,2]
[379215902,1755190265954,-500.0,0.00027397,2]
[379215903,1755190265963,-500.0,0.00027397,2]
[379215904,1755190265972,-463.72,0.00027397,2]
[379215905,1755190265983,-500.0,0.00027397,2]
[379215906,1755190265992,-500.0,0.00027397,2]
[379215907,1755190266001,-400.0,0.00027397,2]
[379215908,1755190266010,-500.0,0.00027397,2]
[379215909,1755190266019,-400.0,0.00027397,2]
[379215910,1755190266029,-500.0,0.00027397,2]
[379215911,1755190266038,-803.48,0.00027397,2]
[379215912,1755190266047,-500.0,0.00027397,2]
[379215913,1755190266057,-500.0,0.00027397,2]
[379215914,1755190266066,-542.8,0.00027397,2]
[379215915,1755190266076,-400.0,0.00027397,2]
[379215916,1755190266085,-400.0,0.00027397,2]
[379215917,1755190266095,-266.79112232,0.00027397,2]
[379215918,1755190266104,-1997.05,0.00027397,2]
[379215919,1755190266113,-3024.6,0.00027397,2]
[379215920,1755190266122,-400.0,0.00027397,2]
[379215921,1755190266132,-737.85,0.00027397,2]
[379215922,1755190266142,-4932.57,0.00027397,2]
[379215923,1755190266151,-168.63087649,0.00027397,2]
[379215924,1755190266161,-400.0,0.00027397,2]
[379215925,1755190266171,-494.94,0.00027397,2]
[379215926,1755190266180,-400.0,0.00027397,2]
[379215927,1755190266189,-2409.8,0.00027397,2]
[379215928,1755190266198,-400.0,0.00027397,2]
[379215929,1755190266207,-516.48,0.00027397,2]
[379215930,1755190266217,-3297.65,0.00027397,2]
[379215931,1755190266229,-400.0,0.00027397,2]
[379215932,1755190266240,-2068.86,0.00027397,2]
[379215933,1755190266249,-400.0,0.00027397,2]
[379215934,1755190266259,-560.15,0.00027397,2]
[379215935,1755190266268,-400.0,0.00027397,2]
[379215936,1755190266277,-189.83123576,0.00027397,2]
[379215937,1755190266287,-400.0,0.00027397,2]
[379215938,1755190266296,-5339.16,0.00027397,2]
[379215939,1755190266305,-400.0,0.00027397,2]
[379215940,1755190266315,-500.0,0.00027397,2]
[379215941,1755190266324,-400.0,0.00027397,2]
[379215942,1755190266334,-537.55,0.00027397,2]
[379215943,1755190266343,-428.62,0.00027397,2]
[379215944,1755190266353,-787.01,0.00027397,2]
[379215945,1755190266362,-400.0,0.00027397,2]
[379215946,1755190266371,-2915.91,0.00027397,2]
[379215947,1755190266381,-1736.7,0.00027397,2]
[379215948,1755190266390,-6035.01,0.00027397,2]
[379215949,1755190266400,-400.0,0.00027397,2]
[379215950,1755190266409,-535.39896609,0.00027397,2]
[379215951,1755190266419,-400.0,0.00027397,2]
[379215952,1755190266430,-5227.02,0.00027397,2]
[379215953,1755190266439,-8650.55,0.00027397,2]
[379215954,1755190266449,-938.66,0.00027397,2]
[379215955,1755190266458,-1068.15,0.00027397,2]
[379215956,1755190266468,-500.0,0.00027397,2]
[379215957,1755190266478,-4563.38,0.00027397,2]
[379215958,1755190266487,-500.0,0.00027397,2]
[379215959,1755190266499,-500.0,0.00027397,2]
[379215960,1755190266511,-500.0,0.00027397,2]
[379215961,1755190266528,-500.0,0.00027397,2]
[379215962,1755190266547,-400.0,0.00027397,2]
[379215963,1755190266557,-500.0,0.00027397,2]
[379215964,1755190266568,-400.0,0.00027397,2]
[379215965,1755190266577,-9270.59,0.00027397,2]
[379215966,1755190266587,-500.0,0.00027397,2]
[379215967,1755190266597,-500.0,0.00027397,2]
[379215968,1755190266607,-400.0,0.00027397,2]
[379215969,1755190266616,-500.0,0.00027397,2]
[379215970,1755190266625,-500.0,0.00027397,2]
[379215971,1755190266634,-500.0,0.00027397,2]
[379215972,1755190266643,-500.0,0.00027397,2]
[379215973,1755190266652,-500.0,0.00027397,2]
[379215974,1755190266661,-500.0,0.00027397,2]
[379215975,1755190266670,-405.11,0.00027397,2]
[379215976,1755190266679,-500.0,0.00027397,2]
[379215977,1755190266688,-356.32671674,0.00027397,2]
[379215978,1755190269571,-143.67328326,0.00027397,2]
[379215979,1755190269581,-500.0,0.00027397,2]
[379215980,1755190269590,-500.0,0.00027397,2]
[379215981,1755190269602,-293.88137143,0.00027397,2]
[379215982,1755190269611,-400.0,0.00027397,2]
[379215983,1755190269620,-210.44534531,0.00027397,2]
[379215984,1755190269642,-314.22833434,0.00027397,2]
[379215985,1755190269653,-574.13632035,0.00027397,2]
[379215986,1755190269662,-400.0,0.00027397,2]
[379215987,1755190269672,-400.0,0.00027397,2]
[379215988,1755190269681,-400.0,0.00027397,2]
[379215989,1755190269690,-570.31,0.00027397,2]
[379215990,1755190269700,-400.0,0.00027397,2]
[379215991,1755190269709,-400.0,0.00027397,2]
[379215992,1755190269718,-400.0,0.00027397,2]
[379215993,1755190269731,-3290.06,0.00027397,2]
[379215994,1755190269740,-400.0,0.00027397,2]
[379215995,1755190269750,-4943.65,0.00027397,2]
[379215996,1755190269759,-4288.42,0.00027397,2]
[379215997,1755190269768,-400.0,0.00027397,2]
[379215998,1755190269777,-7458.78,0.00027397,2]
[379215999,1755190269787,-1854.11,0.00027397,2]
[379216000,1755190269796,-400.0,0.00027397,2]
[379216001,1755190269805,-892.02,0.00027397,2]